[Event "Titled Tuesday Blitz April 11 Early 2023"]
[White "Nakamura, Hikaru"]
[Black "Rakhmatullaev, Almas"]
[WhiteFideId "2016192"]
[BlackFideId "14205793"]
[WhiteElo "2885"]
[BlackElo "2221"]
[Result "1-0"]
[Round "06"]
[TimeControl "180+2"]
[Date "2023.04.11"]
[WhiteClock "0:01:50"]
[BlackClock "0:00:20"]

1. Nf3 {[%clk 0:03:00]}  Nf6 {[%clk 0:02:59]} 2. e3 {[%clk 0:02:57]}  g6 {[%clk 0:02:59]} 3. b3 {[%clk 0:02:53]}  Bg7 {[%clk 0:03:00]} 4. d4 {[%clk 0:02:53]}  O-O {[%clk 0:03:00]} 5. Bb2 {[%clk 0:02:53]}  d6 {[%clk 0:03:01]} 6. Be2 {[%clk 0:02:53]}  Nbd7 {[%clk 0:03:01]} 7. O-O {[%clk 0:02:54]}  b6 {[%clk 0:03:02]} 8. c4 {[%clk 0:02:54]}  Bb7 {[%clk 0:03:03]} 9. Qc2 {[%clk 0:02:55]}  Re8 {[%clk 0:03:01]} 10. Nc3 {[%clk 0:02:55]}  e5 {[%clk 0:03:00]} 11. dxe5 {[%clk 0:02:55]}  Nxe5 {[%clk 0:02:54]} 12. Nxe5 {[%clk 0:02:55]}  dxe5 {[%clk 0:02:49]} 13. Rfd1 {[%clk 0:02:54]}  Qc8 {[%clk 0:02:50]} 14. Rac1 {[%clk 0:02:48]}  a6 {[%clk 0:02:35]} 15. Nd5 {[%clk 0:02:43]}  Nd7 {[%clk 0:02:30]} 16. b4 {[%clk 0:02:39]}  a5 {[%clk 0:02:10]} 17. b5 {[%clk 0:02:25]}  Bf8 {[%clk 0:01:50]} 18. Rd2 {[%clk 0:02:18]}  Re6 {[%clk 0:01:42]} 19. Rcd1 {[%clk 0:02:15]}  Nc5 {[%clk 0:01:37]} 20. e4 {[%clk 0:02:16]}  Bxd5 {[%clk 0:01:26]} 21. Rxd5 {[%clk 0:02:12]}  Qe8 {[%clk 0:01:25]} 22. Bg4 {[%clk 0:02:08]}  Re7 {[%clk 0:01:21]} 23. Ba3 {[%clk 0:02:07]}  h5 {[%clk 0:01:08]} 24. Bxc5 {[%clk 0:02:05]}  bxc5 {[%clk 0:01:07]} 25. Bd7 {[%clk 0:02:00]}  Rxd7 {[%clk 0:00:40]} 26. Rxd7 {[%clk 0:02:00]}  Bd6 {[%clk 0:00:41]} 27. R7xd6 {[%clk 0:02:00]}  cxd6 {[%clk 0:00:42]} 28. Rxd6 {[%clk 0:02:01]}  Qe7 {[%clk 0:00:35]} 29. Qd2 {[%clk 0:02:01]}  Qh4 {[%clk 0:00:33]} 30. Qd5 {[%clk 0:01:54]}  Re8 {[%clk 0:00:28]} 31. Rxg6+ {[%clk 0:01:54]}  Kf8 {[%clk 0:00:21]} 32. Qd6+ {[%clk 0:01:50]}  Re7 {[%clk 0:00:20]} 33. Qd8+ {[%clk 0:01:50]} 1-0


[Site "https://www.chess.com"]

[Event "Titled Tuesday Blitz April 11 Early 2023"]
[White "Urazayev, Arystanbek"]
[Black "Indjic, Aleksandar"]
[WhiteFideId "13709810"]
[BlackFideId "911925"]
[WhiteElo "2449"]
[BlackElo "2614"]
[Result "1-0"]
[Round "06"]
[TimeControl "180+2"]
[Date "2023.04.11"]
[WhiteClock "0:00:06"]
[BlackClock "0:00:07"]

1. e4 {[%clk 0:03:00]}  e5 {[%clk 0:02:59]} 2. Nf3 {[%clk 0:03:01]}  Nc6 {[%clk 0:03:00]} 3. Bb5 {[%clk 0:03:01]}  Nf6 {[%clk 0:03:00]} 4. d3 {[%clk 0:03:01]}  Bc5 {[%clk 0:02:59]} 5. c3 {[%clk 0:03:01]}  O-O {[%clk 0:02:59]} 6. O-O {[%clk 0:03:00]}  Re8 {[%clk 0:02:59]} 7. Nbd2 {[%clk 0:02:55]}  a6 {[%clk 0:02:59]} 8. Ba4 {[%clk 0:02:55]}  Ba7 {[%clk 0:02:55]} 9. h3 {[%clk 0:02:48]}  d6 {[%clk 0:02:54]} 10. Re1 {[%clk 0:02:47]}  h6 {[%clk 0:02:54]} 11. Nf1 {[%clk 0:02:48]}  b5 {[%clk 0:02:54]} 12. Bb3 {[%clk 0:02:47]}  Be6 {[%clk 0:02:51]} 13. Be3 {[%clk 0:02:47]}  Bxb3 {[%clk 0:02:49]} 14. axb3 {[%clk 0:02:47]}  Bxe3 {[%clk 0:02:48]} 15. Nxe3 {[%clk 0:02:48]}  Ne7 {[%clk 0:02:47]} 16. b4 {[%clk 0:02:48]}  c6 {[%clk 0:02:45]} 17. Nh4 {[%clk 0:02:48]}  a5 {[%clk 0:02:44]} 18. bxa5 {[%clk 0:02:45]}  Rxa5 {[%clk 0:02:45]} 19. Qf3 {[%clk 0:02:44]}  Qa8 {[%clk 0:02:33]} 20. Rxa5 {[%clk 0:02:44]}  Qxa5 {[%clk 0:02:34]} 21. Nef5 {[%clk 0:02:44]}  Nxf5 {[%clk 0:02:30]} 22. Nxf5 {[%clk 0:02:45]}  Re6 {[%clk 0:02:22]} 23. Qg3 {[%clk 0:02:15]}  Ne8 {[%clk 0:02:22]} 24. f4 {[%clk 0:02:09]}  Kh7 {[%clk 0:02:20]} 25. Rf1 {[%clk 0:02:01]}  Qa7+ {[%clk 0:02:19]} 26. Kh1 {[%clk 0:02:01]}  g6 {[%clk 0:02:19]} 27. Ne3 {[%clk 0:01:56]}  exf4 {[%clk 0:02:14]} 28. Rxf4 {[%clk 0:01:56]}  Qe7 {[%clk 0:02:12]} 29. Rf3 {[%clk 0:01:45]}  Rf6 {[%clk 0:01:58]} 30. Qh4 {[%clk 0:01:40]}  Re6 {[%clk 0:01:51]} 31. Qf2 {[%clk 0:01:32]}  Kg7 {[%clk 0:01:49]} 32. Qg3 {[%clk 0:01:21]}  Qg5 {[%clk 0:01:48]} 33. Qf2 {[%clk 0:01:09]}  Rf6 {[%clk 0:01:48]} 34. Nf5+ {[%clk 0:01:02]}  Kh7 {[%clk 0:01:44]} 35. Nd4 {[%clk 0:01:01]}  Rxf3 {[%clk 0:01:23]} 36. Qxf3 {[%clk 0:01:00]}  Kg7 {[%clk 0:01:23]} 37. Nxc6 {[%clk 0:00:49]}  Qc1+ {[%clk 0:01:23]} 38. Kh2 {[%clk 0:00:49]}  Qxb2 {[%clk 0:01:23]} 39. d4 {[%clk 0:00:50]}  Nf6 {[%clk 0:01:13]} 40. e5 {[%clk 0:00:48]}  dxe5 {[%clk 0:01:14]} 41. dxe5 {[%clk 0:00:49]}  Nh7 {[%clk 0:01:14]} 42. Nd8 {[%clk 0:00:46]}  Qb3 {[%clk 0:01:02]} 43. e6 {[%clk 0:00:44]}  Ng5 {[%clk 0:00:54]} 44. Qf4 {[%clk 0:00:29]}  fxe6 {[%clk 0:00:27]} 45. Qe5+ {[%clk 0:00:19]}  Kf8 {[%clk 0:00:25]} 46. h4 {[%clk 0:00:19]}  Nf7 {[%clk 0:00:14]} 47. Qf6 {[%clk 0:00:15]}  e5 {[%clk 0:00:14]} 48. Ne6+ {[%clk 0:00:10]}  Ke8 {[%clk 0:00:14]} 49. Ng7+ {[%clk 0:00:05]}  Kd7 {[%clk 0:00:14]} 50. Qxg6 {[%clk 0:00:06]}  Qd5 {[%clk 0:00:13]} 51. Qf5+ {[%clk 0:00:06]}  Kc7 {[%clk 0:00:11]} 52. Qf6 {[%clk 0:00:06]}  Nd6 {[%clk 0:00:10]} 53. Qxh6 {[%clk 0:00:05]}  e4 {[%clk 0:00:10]} 54. Qf4 {[%clk 0:00:05]}  Kc6 {[%clk 0:00:09]} 55. h5 {[%clk 0:00:05]}  Qf7 {[%clk 0:00:04]} 56. Qxf7 {[%clk 0:00:02]}  Nxf7 {[%clk 0:00:05]} 57. Kg3 {[%clk 0:00:03]}  Kd5 {[%clk 0:00:06]} 58. Kf4 {[%clk 0:00:03]}  Kc4 {[%clk 0:00:06]} 59. Kxe4 {[%clk 0:00:03]}  Kxc3 {[%clk 0:00:06]} 60. Ne6 {[%clk 0:00:03]}  b4 {[%clk 0:00:07]} 61. Nc5 {[%clk 0:00:04]}  Kc4 {[%clk 0:00:07]} 62. Nd3 {[%clk 0:00:03]}  b3 {[%clk 0:00:07]} 63. Nb2+ {[%clk 0:00:02]}  Kc3 {[%clk 0:00:08]} 64. Na4+ {[%clk 0:00:02]}  Kb4 {[%clk 0:00:08]} 65. Nb2 {[%clk 0:00:03]}  Kc3 {[%clk 0:00:08]} 66. Nd3 {[%clk 0:00:03]}  Ng5+ {[%clk 0:00:08]} 67. Ke3 {[%clk 0:00:04]}  Nf7 {[%clk 0:00:08]} 68. g4 {[%clk 0:00:04]}  Kc2 {[%clk 0:00:08]} 69. Ne1+ {[%clk 0:00:03]}  Kc3 {[%clk 0:00:08]} 70. Nd3 {[%clk 0:00:04]}  Kc2 {[%clk 0:00:09]} 71. Kd4 {[%clk 0:00:04]}  Kd2 {[%clk 0:00:09]} 72. Nb2 {[%clk 0:00:03]}  Kc2 {[%clk 0:00:09]} 73. Na4 {[%clk 0:00:04]}  Kd2 {[%clk 0:00:09]} 74. Kd5 {[%clk 0:00:04]}  Ke3 {[%clk 0:00:09]} 75. Ke6 {[%clk 0:00:05]}  Nd8+ {[%clk 0:00:06]} 76. Kf6 {[%clk 0:00:05]}  Nb7 {[%clk 0:00:07]} 77. h6 {[%clk 0:00:05]}  Nc5 {[%clk 0:00:07]} 78. Nb2 {[%clk 0:00:06]}  Kd2 {[%clk 0:00:07]} 79. h7 {[%clk 0:00:06]}  Kc3 {[%clk 0:00:07]} 80. h8=Q {[%clk 0:00:06]}  Kxb2 {[%clk 0:00:08]} 81. Ke7+ {[%clk 0:00:07]}  Ka2 {[%clk 0:00:08]} 82. Qa8+ {[%clk 0:00:07]}  Kb1 {[%clk 0:00:07]} 83. Qh1+ {[%clk 0:00:07]}  Ka2 {[%clk 0:00:07]} 84. Qa8+ {[%clk 0:00:06]}  Kb1 {[%clk 0:00:07]} 85. Qd5 {[%clk 0:00:06]} 1-0


[Site "https://www.chess.com"]

[Event "Titled Tuesday Blitz April 11 Early 2023"]
[White "Srihari L R"]
[Black "Grigoriants, Sergey"]
[WhiteFideId "46617116"]
[BlackFideId "4130804"]
[WhiteElo "2334"]
[BlackElo "2502"]
[Result "1-0"]
[Round "06"]
[TimeControl "180+2"]
[Date "2023.04.11"]
[WhiteClock "0:00:05"]
[BlackClock "0:00:04"]

1. d4 {[%clk 0:03:00]}  Nf6 {[%clk 0:02:56]} 2. Bg5 {[%clk 0:02:58]}  d5 {[%clk 0:02:52]} 3. Nd2 {[%clk 0:02:57]}  c5 {[%clk 0:02:49]} 4. e3 {[%clk 0:02:57]}  Nc6 {[%clk 0:02:47]} 5. Ngf3 {[%clk 0:02:56]}  cxd4 {[%clk 0:02:43]} 6. exd4 {[%clk 0:02:57]}  Bf5 {[%clk 0:02:43]} 7. c3 {[%clk 0:02:55]}  e6 {[%clk 0:02:39]} 8. Be2 {[%clk 0:02:53]}  Bd6 {[%clk 0:02:36]} 9. O-O {[%clk 0:02:53]}  h6 {[%clk 0:02:32]} 10. Bh4 {[%clk 0:02:52]}  O-O {[%clk 0:02:29]} 11. Re1 {[%clk 0:02:51]}  Rb8 {[%clk 0:02:23]} 12. Bf1 {[%clk 0:02:45]}  Be7 {[%clk 0:02:16]} 13. Bg3 {[%clk 0:02:43]}  Rc8 {[%clk 0:02:13]} 14. Ne5 {[%clk 0:02:37]}  Nxe5 {[%clk 0:02:12]} 15. Bxe5 {[%clk 0:02:35]}  Bd6 {[%clk 0:02:05]} 16. Qb3 {[%clk 0:02:16]}  Bxe5 {[%clk 0:02:03]} 17. Rxe5 {[%clk 0:02:13]}  Ng4 {[%clk 0:01:29]} 18. Re2 {[%clk 0:00:20]}  Bd3 {[%clk 0:01:23]} 19. Ree1 {[%clk 0:00:20]}  Qh4 {[%clk 0:01:22]} 20. Nf3 {[%clk 0:00:20]}  Qxf2+ {[%clk 0:01:19]} 21. Kh1 {[%clk 0:00:21]}  Ne3 {[%clk 0:00:28]} 22. Rxe3 {[%clk 0:00:20]}  Bxf1 {[%clk 0:00:28]} 23. Nh4 {[%clk 0:00:09]}  Bc4 {[%clk 0:00:19]} 24. Rf3 {[%clk 0:00:06]}  Qxh4 {[%clk 0:00:16]} 25. Qc2 {[%clk 0:00:06]}  Qe4 {[%clk 0:00:15]} 26. Qd2 {[%clk 0:00:05]}  Qe2 {[%clk 0:00:14]} 27. Qf4 {[%clk 0:00:06]}  Qxb2 {[%clk 0:00:12]} 28. Rg1 {[%clk 0:00:07]}  Qc2 {[%clk 0:00:12]} 29. Rg3 {[%clk 0:00:07]}  Kh7 {[%clk 0:00:10]} 30. Qe5 {[%clk 0:00:05]}  f6 {[%clk 0:00:07]} 31. Qxe6 {[%clk 0:00:06]}  Qe4 {[%clk 0:00:07]} 32. Qd7 {[%clk 0:00:06]}  Be2 {[%clk 0:00:04]} 33. Qxg7# {[%clk 0:00:05]} 1-0


[Site "https://www.chess.com"]

[Event "Titled Tuesday Blitz April 11 Early 2023"]
[White "Movahed, Sina"]
[Black "Rohith Krishna S"]
[WhiteFideId "42520835"]
[BlackFideId "46617051"]
[WhiteElo "2225"]
[BlackElo "2270"]
[Result "1-0"]
[Round "06"]
[TimeControl "180+2"]
[Date "2023.04.11"]
[WhiteClock "0:01:05"]
[BlackClock "0:00:09"]

1. Nf3 {[%clk 0:03:00]}  Nc6 {[%clk 0:02:57]} 2. c4 {[%clk 0:02:58]}  e5 {[%clk 0:02:56]} 3. Nc3 {[%clk 0:02:59]}  f5 {[%clk 0:02:53]} 4. d3 {[%clk 0:02:55]}  Nf6 {[%clk 0:02:51]} 5. a3 {[%clk 0:02:52]}  a5 {[%clk 0:02:51]} 6. g3 {[%clk 0:02:51]}  Bc5 {[%clk 0:02:46]} 7. Bg2 {[%clk 0:02:48]}  d6 {[%clk 0:02:44]} 8. O-O {[%clk 0:02:48]}  O-O {[%clk 0:02:39]} 9. e3 {[%clk 0:02:48]}  Kh8 {[%clk 0:02:35]} 10. d4 {[%clk 0:02:47]}  Bb6 {[%clk 0:02:22]} 11. Rb1 {[%clk 0:02:44]}  f4 {[%clk 0:02:17]} 12. c5 {[%clk 0:02:38]}  Ba7 {[%clk 0:02:14]} 13. dxe5 {[%clk 0:02:30]}  Nxe5 {[%clk 0:02:11]} 14. cxd6 {[%clk 0:02:24]}  Nxf3+ {[%clk 0:02:06]} 15. Bxf3 {[%clk 0:02:25]}  fxe3 {[%clk 0:02:06]} 16. Bxe3 {[%clk 0:02:17]}  Bxe3 {[%clk 0:02:06]} 17. fxe3 {[%clk 0:02:17]}  cxd6 {[%clk 0:02:06]} 18. Qd4 {[%clk 0:02:15]}  Qe7 {[%clk 0:01:59]} 19. Rbd1 {[%clk 0:02:14]}  Bh3 {[%clk 0:01:53]} 20. Rf2 {[%clk 0:02:12]}  Rad8 {[%clk 0:01:48]} 21. Ne2 {[%clk 0:02:08]}  Ng4 {[%clk 0:01:34]} 22. Bxg4 {[%clk 0:02:00]}  Bxg4 {[%clk 0:01:34]} 23. Qxg4 {[%clk 0:01:55]}  Qxe3 {[%clk 0:01:34]} 24. Rf1 {[%clk 0:01:45]}  Rxf2 {[%clk 0:01:12]} 25. Rxf2 {[%clk 0:01:46]}  Re8 {[%clk 0:01:01]} 26. Nf4 {[%clk 0:01:43]}  Qb6 {[%clk 0:00:52]} 27. Kg2 {[%clk 0:01:39]}  Qc6+ {[%clk 0:00:36]} 28. Qf3 {[%clk 0:01:37]}  Qc8 {[%clk 0:00:37]} 29. Qd5 {[%clk 0:01:35]}  Qd8 {[%clk 0:00:24]} 30. Qxb7 {[%clk 0:01:32]}  a4 {[%clk 0:00:23]} 31. Qc6 {[%clk 0:01:25]}  Re3 {[%clk 0:00:21]} 32. Qxa4 {[%clk 0:01:22]}  h6 {[%clk 0:00:17]} 33. Qc6 {[%clk 0:01:18]}  Qg5 {[%clk 0:00:16]} 34. a4 {[%clk 0:01:16]}  Qf5 {[%clk 0:00:13]} 35. b4 {[%clk 0:01:09]}  g5 {[%clk 0:00:13]} 36. Qa8+ {[%clk 0:01:08]}  Kh7 {[%clk 0:00:12]} 37. Qa7+ {[%clk 0:01:07]}  Kh8 {[%clk 0:00:09]} 38. Ng6+ {[%clk 0:01:05]} 1-0


[Site "https://www.chess.com"]

[Event "Titled Tuesday Blitz April 11 Early 2023"]
[White "Corrales Jimenez, Fidel"]
[Black "Csonka, Balazs"]
[WhiteFideId "3506690"]
[BlackFideId "742910"]
[WhiteElo "2541"]
[BlackElo "2404"]
[Result "1-0"]
[Round "06"]
[TimeControl "180+2"]
[Date "2023.04.11"]
[WhiteClock "0:01:40"]
[BlackClock "0:00:02"]

1. e4 {[%clk 0:02:59]}  c6 {[%clk 0:03:00]} 2. d4 {[%clk 0:02:59]}  d5 {[%clk 0:03:00]} 3. e5 {[%clk 0:03:00]}  Bf5 {[%clk 0:03:00]} 4. h4 {[%clk 0:03:00]}  Qc7 {[%clk 0:02:48]} 5. Bd3 {[%clk 0:03:00]}  Bxd3 {[%clk 0:02:46]} 6. Qxd3 {[%clk 0:03:01]}  e6 {[%clk 0:02:41]} 7. Nf3 {[%clk 0:03:01]}  Qa5+ {[%clk 0:02:21]} 8. Nbd2 {[%clk 0:02:58]}  c5 {[%clk 0:02:08]} 9. O-O {[%clk 0:02:52]}  c4 {[%clk 0:02:03]} 10. Qe2 {[%clk 0:02:52]}  Nc6 {[%clk 0:02:04]} 11. c3 {[%clk 0:02:52]}  Nge7 {[%clk 0:01:55]} 12. h5 {[%clk 0:02:50]}  h6 {[%clk 0:01:54]} 13. Nh4 {[%clk 0:02:50]}  Qd8 {[%clk 0:01:38]} 14. Qg4 {[%clk 0:02:50]}  Qd7 {[%clk 0:01:31]} 15. b3 {[%clk 0:02:48]}  b5 {[%clk 0:01:20]} 16. a4 {[%clk 0:02:44]}  b4 {[%clk 0:01:20]} 17. bxc4 {[%clk 0:02:39]}  bxc3 {[%clk 0:01:14]} 18. cxd5 {[%clk 0:02:32]}  exd5 {[%clk 0:01:08]} 19. Qxd7+ {[%clk 0:02:33]}  Kxd7 {[%clk 0:01:08]} 20. Ndf3 {[%clk 0:02:33]}  Rc8 {[%clk 0:01:02]} 21. Ba3 {[%clk 0:02:30]}  Na5 {[%clk 0:00:51]} 22. Rab1 {[%clk 0:02:23]}  Nec6 {[%clk 0:00:37]} 23. Bc1 {[%clk 0:02:21]}  Nb4 {[%clk 0:00:29]} 24. Nf5 {[%clk 0:02:19]}  c2 {[%clk 0:00:24]} 25. Rb2 {[%clk 0:02:18]}  Nd3 {[%clk 0:00:22]} 26. Ra2 {[%clk 0:02:17]}  Nb3 {[%clk 0:00:20]} 27. Be3 {[%clk 0:02:16]}  g6 {[%clk 0:00:12]} 28. N5h4 {[%clk 0:02:09]}  gxh5 {[%clk 0:00:09]} 29. Nf5 {[%clk 0:02:09]}  Ke6 {[%clk 0:00:07]} 30. Ng3 {[%clk 0:02:09]}  h4 {[%clk 0:00:05]} 31. Nh5 {[%clk 0:02:09]}  c1=Q {[%clk 0:00:06]} 32. Bxc1 {[%clk 0:02:08]}  Rxc1 {[%clk 0:00:06]} 33. Rxc1 {[%clk 0:02:04]}  Nbxc1 {[%clk 0:00:07]} 34. Rc2 {[%clk 0:02:03]}  Kd7 {[%clk 0:00:06]} 35. Nf6+ {[%clk 0:02:00]}  Kd8 {[%clk 0:00:06]} 36. Nxh4 {[%clk 0:01:59]}  Be7 {[%clk 0:00:06]} 37. Nf5 {[%clk 0:01:52]}  Bxf6 {[%clk 0:00:06]} 38. exf6 {[%clk 0:01:52]}  Re8 {[%clk 0:00:06]} 39. Ne7 {[%clk 0:01:53]}  Kd7 {[%clk 0:00:06]} 40. g3 {[%clk 0:01:51]}  a5 {[%clk 0:00:04]} 41. Kg2 {[%clk 0:01:50]}  Nb3 {[%clk 0:00:04]} 42. Rc3 {[%clk 0:01:47]}  Ndc1 {[%clk 0:00:05]} 43. Nxd5 {[%clk 0:01:44]}  Rd8 {[%clk 0:00:02]} 44. Ne3 {[%clk 0:01:40]}  Ke8 {[%clk 0:00:02]} 45. d5 {[%clk 0:01:40]}  Rb8 {[%clk 0:00:02]} 46. Rc7 {[%clk 0:01:39]}  Ne2 {[%clk 0:00:02]} 47. Re7+ {[%clk 0:01:40]}  Kf8 {[%clk 0:00:02]} 48. Nf5 {[%clk 0:01:41]}  Nc5 {[%clk 0:00:02]} 49. Rxe2 {[%clk 0:01:40]} 1-0


[Site "https://www.chess.com"]

[Event "Titled Tuesday Blitz April 11 Early 2023"]
[White "Pranesh M"]
[Black "Zhu, Jiner"]
[WhiteFideId "35028600"]
[BlackFideId "8608059"]
[WhiteElo "2437"]
[BlackElo "2384"]
[Result "1-0"]
[Round "06"]
[TimeControl "180+2"]
[Date "2023.04.11"]
[WhiteClock "0:00:03"]
[BlackClock "0:00:02"]

1. e4 {[%clk 0:03:00]}  e5 {[%clk 0:02:57]} 2. Nf3 {[%clk 0:03:00]}  Nc6 {[%clk 0:02:58]} 3. Bc4 {[%clk 0:03:01]}  Bc5 {[%clk 0:02:57]} 4. c3 {[%clk 0:03:01]}  Nf6 {[%clk 0:02:51]} 5. d4 {[%clk 0:03:01]}  exd4 {[%clk 0:02:51]} 6. e5 {[%clk 0:03:02]}  d5 {[%clk 0:02:40]} 7. Bb5 {[%clk 0:03:01]}  Ne4 {[%clk 0:02:38]} 8. cxd4 {[%clk 0:02:58]}  Bb4+ {[%clk 0:02:36]} 9. Nbd2 {[%clk 0:02:58]}  Bg4 {[%clk 0:02:28]} 10. Qa4 {[%clk 0:02:55]}  Bxd2+ {[%clk 0:02:26]} 11. Nxd2 {[%clk 0:02:55]}  Nxd2 {[%clk 0:02:24]} 12. Bxd2 {[%clk 0:02:53]}  Bd7 {[%clk 0:02:20]} 13. h4 {[%clk 0:02:38]}  a6 {[%clk 0:02:18]} 14. Bxc6 {[%clk 0:02:39]}  Bxc6 {[%clk 0:02:18]} 15. Qa3 {[%clk 0:02:39]}  Qe7 {[%clk 0:02:07]} 16. Qg3 {[%clk 0:02:35]}  O-O-O {[%clk 0:01:57]} 17. O-O {[%clk 0:02:17]}  Qe6 {[%clk 0:01:54]} 18. Rfc1 {[%clk 0:01:59]}  Rd7 {[%clk 0:01:34]} 19. Qxg7 {[%clk 0:01:55]}  Rdd8 {[%clk 0:01:33]} 20. Bg5 {[%clk 0:01:51]}  Rdg8 {[%clk 0:01:28]} 21. Qf6 {[%clk 0:01:52]}  h6 {[%clk 0:01:22]} 22. Qxe6+ {[%clk 0:01:46]}  fxe6 {[%clk 0:01:23]} 23. Bf6 {[%clk 0:01:47]}  Rh7 {[%clk 0:01:23]} 24. f3 {[%clk 0:01:45]}  Be8 {[%clk 0:01:19]} 25. Kf2 {[%clk 0:01:39]}  h5 {[%clk 0:01:10]} 26. Rg1 {[%clk 0:01:29]}  Rf8 {[%clk 0:00:47]} 27. Ke3 {[%clk 0:01:26]}  Bg6 {[%clk 0:00:46]} 28. g4 {[%clk 0:01:24]}  Rff7 {[%clk 0:00:43]} 29. Kf4 {[%clk 0:01:01]}  Rf8 {[%clk 0:00:40]} 30. Ke3 {[%clk 0:00:58]}  b6 {[%clk 0:00:39]} 31. a4 {[%clk 0:00:53]}  a5 {[%clk 0:00:38]} 32. Rg3 {[%clk 0:00:41]}  Kb7 {[%clk 0:00:37]} 33. gxh5 {[%clk 0:00:38]}  Bxh5 {[%clk 0:00:37]} 34. Rag1 {[%clk 0:00:39]}  c5 {[%clk 0:00:27]} 35. Rg7+ {[%clk 0:00:38]}  Rf7 {[%clk 0:00:26]} 36. Rxh7 {[%clk 0:00:22]}  Rxh7 {[%clk 0:00:27]} 37. Rg8 {[%clk 0:00:23]}  cxd4+ {[%clk 0:00:25]} 38. Kxd4 {[%clk 0:00:23]}  Bxf3 {[%clk 0:00:25]} 39. Rd8 {[%clk 0:00:12]}  Rc7 {[%clk 0:00:22]} 40. b3 {[%clk 0:00:11]}  Rh7 {[%clk 0:00:22]} 41. Rd6 {[%clk 0:00:11]}  Bg4 {[%clk 0:00:20]} 42. Bd8 {[%clk 0:00:11]}  Kc8 {[%clk 0:00:20]} 43. Bxb6 {[%clk 0:00:06]}  Rxh4 {[%clk 0:00:20]} 44. Kc5 {[%clk 0:00:06]}  Rh3 {[%clk 0:00:18]} 45. Bxa5 {[%clk 0:00:04]}  Rxb3 {[%clk 0:00:17]} 46. Kc6 {[%clk 0:00:04]}  Kb8 {[%clk 0:00:17]} 47. Bb6 {[%clk 0:00:03]}  Rc3+ {[%clk 0:00:07]} 48. Bc5 {[%clk 0:00:04]}  Kc8 {[%clk 0:00:08]} 49. a5 {[%clk 0:00:04]}  Be2 {[%clk 0:00:03]} 50. Rxe6 {[%clk 0:00:02]}  Kd8 {[%clk 0:00:03]} 51. Kd6 {[%clk 0:00:02]}  Bh5 {[%clk 0:00:02]} 52. Rh6 {[%clk 0:00:02]}  Be8 {[%clk 0:00:02]} 53. Rh8 {[%clk 0:00:03]} 1-0


[Site "https://www.chess.com"]